fUSD/lending_fUSD_20250623
["ID","MTS","AMOUNT","RATE_DAILY","PERIOD"]
[367198269,1750698660059,-660.75,0.00023269,2]
[367198270,1750698660069,-490.0,0.00023269,2]
[367198271,1750698660081,-490.0,0.00023269,2]
[367198272,1750698660090,-1520.18,0.00023269,2]
[367198273,1750698660099,-500.0,0.00023269,2]
[367198274,1750698660110,-490.0,0.00023269,2]
[367198275,1750698660119,-1435.25,0.00023269,2]
[367198276,1750698660129,-490.0,0.00023269,2]
[367198277,1750698660138,-1338.13,0.00023269,2]
[367198278,1750698660149,-1071.6,0.00023269,2]
[367198279,1750698660159,-500.0,0.00023269,2]
[367198280,1750698660168,-1728.498739,0.00023269,7]
[367198281,1750698660177,-490.0,0.00023269,2]
[367198282,1750698660187,-1728.498739,0.00023269,7]
[367198283,1750698660197,-1193.49,0.00023269,2]
[367198284,1750698660207,-490.0,0.00023269,2]
[367198285,1750698660217,-943.07,0.00023269,2]
[367198286,1750698660226,-765.84,0.00023269,2]
[367198287,1750698660236,-500.0,0.00023269,2]
[367198288,1750698660246,-151.0,0.00023269,7]
[367198289,1750698660258,-490.0,0.00023269,2]
[367198290,1750698660268,-490.0,0.00023269,2]
[367198291,1750698660279,-490.0,0.00023269,2]
[367198292,1750698660289,-490.0,0.00023269,2]
[367198293,1750698660298,-154.03612538,0.00023269,2]
[367198294,1750698660308,-490.0,0.00023269,2]
[367198295,1750698660317,-975.19,0.00023269,2]
[367198296,1750698660331,-1015.78,0.00023269,2]
[367198297,1750698660341,-1121.14,0.00023269,2]
[367198298,1750698660350,-490.0,0.00023269,2]
[367198299,1750698660359,-386.68370671,0.00023269,2]
[367198300,1750698660369,-564.01847303,0.00023269,2]
[367198301,1750698660379,-721.36,0.00023269,2]
[367198302,1750698660389,-490.0,0.00023269,2]
[367198303,1750698660399,-1496.89,0.00023269,2]
[367198304,1750698660408,-490.0,0.00023269,2]
[367198305,1750698660418,-1850.56,0.00023269,2]
[367198306,1750698660427,-490.0,0.00023269,2]
[367198307,1750698660436,-851.87,0.00023269,2]
[367198308,1750698660445,-775.66,0.00023269,2]
[367198309,1750698660454,-151.0,0.00023269,7]
[367198310,1750698660464,-508.01,0.00023269,2]
[367198311,1750698660473,-490.0,0.00023269,2]
[367198312,1750698660483,-490.0,0.00023269,2]
[367198313,1750698660492,-490.0,0.00023269,2]
[367198314,1750698660502,-490.0,0.00023269,2]
[367198315,1750698660511,-696.43,0.00023269,2]
[367198316,1750698660521,-490.0,0.00023269,2]
[367198317,1750698660530,-482.99000007,0.00023269,2]
[367198318,1750698660540,-490.0,0.00023269,2]
[367198319,1750698660550,-475.72429709,0.00023269,2]
[367198320,1750698660560,-503.51,0.00023269,2]
[367198321,1750698660571,-636.7879598,0.00023269,2]
[367198322,1750698660584,-490.0,0.00023269,2]
[367198323,1750698660594,-490.0,0.00023269,2]
[367198324,1750698660603,-490.0,0.00023269,2]
[367198325,1750698660613,-759.75,0.00023269,2]
[367198326,1750698660622,-719.21,0.00023269,2]
[367198327,1750698660632,-550.96,0.00023269,2]
[367198328,1750698660641,-490.0,0.00023269,2]
[367198329,1750698660651,-490.0,0.00023269,2]
[367198330,1750698660662,-1736.88,0.00023269,2]
[367198331,1750698660673,-1417.97,0.00023269,2]
[367198332,1750698660683,-490.0,0.00023269,2]
[367198333,1750698660693,-666.0,0.0002327,2]
[367198334,1750698660702,-490.0,0.0002327,2]
[367198335,1750698660712,-2001.64031179,0.0002327,2]
[367198336,1750698660722,-490.0,0.0002327,2]
[367198337,1750698660731,-490.0,0.0002327,2]
[367198338,1750698660741,-1272.27,0.0002327,2]
[367198339,1750698660751,-490.0,0.0002327,2]
[367198340,1750698660762,-490.0,0.0002327,2]
[367198341,1750698660771,-490.0,0.0002327,2]
[367198342,1750698660781,-490.0,0.0002327,2]
[367198343,1750698660791,-688.42,0.0002327,2]
[367198344,1750698660800,-490.0,0.0002327,2]
[367198345,1750698660810,-490.0,0.0002327,2]
[367198346,1750698660819,-490.0,0.0002327,2]
[367198347,1750698660831,-528.96555486,0.0002327,2]
[367198348,1750698660841,-490.0,0.0002327,2]
[367198349,1750698660851,-490.0,0.0002327,2]
[367198350,1750698660861,-619.84,0.0002327,2]
[367198351,1750698660870,-490.0,0.0002327,2]
[367198352,1750698660879,-490.0,0.0002327,2]
[367198353,1750698660889,-490.0,0.0002327,2]
[367198354,1750698660899,-490.0,0.0002327,2]
[367198355,1750698660909,-815.99,0.0002327,2]
[367198356,1750698660918,-490.0,0.0002327,2]
[367198357,1750698660928,-490.0,0.0002327,2]
[367198358,1750698660938,-500.0,0.0002327,2]
[367198359,1750698660948,-490.0,0.0002327,2]
[367198360,1750698660958,-490.0,0.0002327,2]
[367198361,1750698660968,-490.0,0.0002327,2]
[367198362,1750698660977,-490.0,0.0002327,2]
[367198363,1750698660987,-490.0,0.0002327,2]
[367198364,1750698660997,-490.0,0.0002327,2]
[367198365,1750698661006,-490.0,0.0002327,2]
[367198366,1750698661015,-490.0,0.0002327,2]
[367198367,1750698661025,-491.68,0.0002327,2]
[367198368,1750698661037,-490.0,0.0002327,2]
[367198369,1750698661047,-490.0,0.0002327,2]
[367198370,1750698661056,-490.0,0.0002327,2]
[367198371,1750698661066,-490.0,0.0002327,2]
[367198372,1750698661081,-490.0,0.0002327,2]
[367198373,1750698661093,-447.11301207,0.0002327,2]
[367198374,1750698661102,-490.0,0.0002327,2]
[367198375,1750698661114,-490.0,0.0002327,2]
[367198376,1750698661124,-490.0,0.0002327,2]
[367198377,1750698661134,-490.0,0.0002327,2]
[367198378,1750698661144,-490.0,0.0002327,2]
[367198379,1750698661153,-490.0,0.0002327,2]
[367198380,1750698661162,-982.4,0.0002327,2]
[367198381,1750698661172,-626.05791343,0.0002327,2]
[367198382,1750698661181,-490.0,0.0002327,2]
[367198383,1750698661192,-683.19,0.0002327,2]
[367198384,1750698661202,-490.0,0.0002327,2]
[367198385,1750698661212,-490.0,0.0002327,2]
[367198386,1750698661222,-490.0,0.0002327,2]
[367198387,1750698661232,-490.0,0.0002327,2]
[367198388,1750698661243,-1734.24,0.0002327,2]
[367198389,1750698661252,-2397.5,0.0002327,2]
[367198390,1750698661262,-665.68,0.0002327,2]
[367198391,1750698661271,-1068.53,0.0002327,2]
[367198392,1750698661281,-963.54,0.0002327,2]
[367198393,1750698661290,-490.0,0.0002327,2]
[367198394,1750698661300,-583.59043602,0.0002327,2]
[367198395,1750698661309,-1365.65,0.0002327,2]
[367198396,1750698661319,-1251.07,0.0002327,2]
[367198397,1750698661333,-494.31,0.0002327,2]
[367198398,1750698661342,-1403.96,0.0002327,2]
[367198399,1750698661352,-851.44,0.0002327,2]
[367198400,1750698661361,-500.0,0.0002327,2]
[367198401,1750698661371,-537.5,0.0002327,2]
[367198402,1750698661381,-500.0,0.0002327,2]
[367198403,1750698661391,-500.0,0.0002327,2]
[367198404,1750698661401,-608.03,0.0002327,2]
[367198405,1750698661412,-151.0,0.0002327,7]
[367198406,1750698661424,-189.238377,0.0002327,7]
[367198407,1750698661434,-1608.07,0.0002327,2]
[367198408,1750698661445,-500.0,0.0002327,2]
[367198409,1750698661454,-1435.25,0.0002327,2]
[367198410,1750698661465,-1728.498739,0.0002327,7]
[367198411,1750698661475,-1728.498739,0.0002327,7]
[367198412,1750698661485,-500.0,0.0002327,2]
[367198413,1750698661494,-163.042248,0.0002327,7]
[367198414,1750698661504,-151.0,0.0002327,7]
[367198415,1750698661514,-500.0,0.00023271,2]
[367198416,1750698661523,-500.0,0.00023271,2]
[367198417,1750698661533,-500.0,0.00023271,2]
[367198418,1750698661543,-500.0,0.00023271,2]
[367198419,1750698661553,-500.0,0.00023271,2]
[367198420,1750698661563,-1608.07,0.00023271,2]
[367198421,1750698661573,-500.0,0.00023271,2]
[367198422,1750698661589,-1435.25,0.00023271,2]
[367198423,1750698661599,-500.0,0.00023271,2]
[367198424,1750698661609,-666.0,0.00023271,2]
[367198425,1750698661619,-322.70217564,0.00023273,2]
[367198426,1750698661629,-500.0,0.00023273,2]
[367198427,1750698661639,-500.0,0.00023273,2]
[367198428,1750698661649,-549.26606887,0.00023273,2]
[367198429,1750698661660,-536.26993864,0.00023273,2]
[367198430,1750698661671,-500.0,0.00023273,2]
[367198431,1750698661681,-500.0,0.00023273,2]
[367198432,1750698661787,-500.0,0.00023273,2]
[367198433,1750698661797,-500.0,0.00023273,2]
[367198434,1750698661807,-500.0,0.00023273,2]
[367198435,1750698661817,-500.0,0.00023273,2]
[367198436,1750698661828,-500.0,0.00023273,2]
[367198437,1750698661839,-502.1578989,0.00023273,2]
[367198438,1750698661850,-501.06796316,0.00023273,2]
[367198439,1750698661861,-500.0,0.00023273,2]
[367198440,1750698661871,-273.05448127,0.00023273,2]
[367198441,1750698661881,-500.0,0.00023273,2]
[367198442,1750698661891,-506.27427075,0.00023273,2]
[367198443,1750698661902,-500.84163687,0.00023273,2]
[367198444,1750698661912,-333.52822272,0.00023273,2]
[367198445,1750698661923,-501.0710572,0.00023273,2]
[367198446,1750698661933,-200.8790701,0.00023273,2]
[367198447,1750698661944,-501.56609524,0.00023273,2]
[367198448,1750698661954,-164.00211735,0.00023273,2]
[367198449,1750698661964,-500.46132032,0.00023273,2]
[367198450,1750698661975,-452.8143615,0.00023273,2]
[367198451,1750698661986,-500.0,0.00023273,2]
[367198452,1750698661996,-212.92778401,0.00023273,2]
[367198453,1750698662006,-514.46426494,0.00023273,2]
[367198454,1750698662016,-321.83793351,0.00023273,2]
[367198455,1750698662026,-500.0,0.00023273,2]
[367198456,1750698662040,-160.17566312,0.00023273,2]
[367198457,1750698662050,-163.34382596,0.00023273,2]
[367198458,1750698662060,-500.0,0.00023273,2]
[367198459,1750698662071,-500.0,0.00023273,2]
[367198460,1750698662084,-513.37388799,0.00023273,2]
[367198461,1750698662095,-501.61400318,0.00023273,2]
[367198462,1750698662104,-501.20566191,0.00023273,2]
[367198463,1750698662114,-150.0,0.00023282,2]
[367198464,1750698662123,-2000.0,0.000233,2]
[367198465,1750698662133,-150.0,0.000233,2]
[367198466,1750698662142,-203.0,0.00023305,2]
[367198467,1750698662152,-293.22941206,0.00023342,2]
[367198468,1750698662164,-666.82455653,0.00023351,2]
[367198469,1750698662174,-151.0,0.00023351,7]
[367198470,1750698662183,-293.623704,0.00023351,7]
[367198471,1750698662194,-20818.85430247,0.00023351,2]
[367198472,1750698662204,-217.7822685,0.00023368,2]
[367198473,1750698662213,-285.32504675,0.0002338,2]
[367198474,1750698662224,-608.03,0.00023382,2]
[367198475,1750698662233,-529.0220642,0.000234,9]
[367198476,1750698662243,-529.02206399,0.000234,9]
[367198477,1750698662254,-529.02206399,0.000234,9]
[367198478,1750698662266,-150.0,0.00023406,2]
[367198479,1750698662277,-150.0,0.00023438,2]
[367198480,1750698662287,-152.1155347,0.00023442,2]
[367198481,1750698662298,-158.19069476,0.00023442,2]
[367198482,1750698662309,-1737.36590958,0.00023442,2]
[367198483,1750698662319,-8507.59244181,0.00023442,2]
[367198484,1750698662332,-176.4791628,0.00023442,4]
[367198485,1750698662342,-20818.85430247,0.00023443,2]
[367198486,1750698662354,-200.0,0.00023457,2]
[367198487,1750698662364,-150.0,0.00023464,2]
[367198488,1750698662374,-158.30547888,0.00023501,2]
[367198489,1750698662384,-500.0,0.00023521,2]
[367198490,1750698662394,-516.31325344,0.00023521,2]
[367198491,1750698662404,-1000.0,0.00023521,2]
[367198492,1750698662414,-500.0,0.00023521,2]
[367198493,1750698662425,-1000.0,0.00023521,2]
[367198494,1750698662435,-543.54442034,0.00023521,2]
[367198495,1750698662446,-1000.0,0.00023521,2]
[367198496,1750698662456,-1000.0,0.00023521,2]
[367198497,1750698662466,-501.93770324,0.00023521,2]
[367198498,1750698662476,-529.02206399,0.00023521,9]
[367198499,1750698662486,-150.0,0.00023522,2]
[367198500,1750698662496,-150.0,0.0002353,2]
[367198501,1750698662506,-168.14218651,0.00023532,2]
[367198502,1750698662517,-20818.85430247,0.00023534,2]
[367198503,1750698662527,-150.0,0.00023536,2]
[367198504,1750698662538,-728.95,0.00023536,2]
[367198505,1750698662549,-490.0,0.00023536,2]
[367198506,1750698662562,-1326.54,0.00023536,2]
[367198507,1750698662573,-558.39,0.00023536,2]
[367198508,1750698662587,-1102.83,0.00023536,2]
[367198509,1750698662597,-150.0,0.00023537,2]
[367198510,1750698662608,-300.0,0.00023537,2]
[367198511,1750698662618,-490.0,0.0002354,2]
[367198512,1750698662628,-490.0,0.0002354,2]
[367198513,1750698662639,-490.0,0.0002354,2]
[367198514,1750698662649,-300.0,0.00023541,2]
[367198515,1750698662659,-300.0,0.00023541,2]
[367198516,1750698662671,-490.0,0.00023541,2]
[367198517,1750698662681,-490.0,0.00023541,2]
[367198518,1750698662691,-528.21132092,0.00023541,2]
[367198519,1750698662701,-490.0,0.00023541,2]
[367198520,1750698662711,-490.0,0.00023541,2]
[367198521,1750698662721,-490.0,0.00023541,2]
[367198522,1750698662731,-667.69,0.00023541,2]
[367198523,1750698662740,-646.96,0.00023541,2]
[367198524,1750698662750,-587.11,0.00023541,2]
[367198525,1750698662760,-563.63,0.00023541,2]
[367198526,1750698662769,-490.0,0.00023541,2]
[367198527,1750698662780,-639.66,0.00023541,2]
[367198528,1750698662790,-727.63,0.00023541,2]
[367198529,1750698662800,-688.37,0.00023541,2]
[367198530,1750698662811,-679.62,0.00023541,2]
[367198531,1750698662821,-1392.01,0.00023541,2]
[367198532,1750698662836,-1071.03,0.00023541,2]
[367198533,1750698662846,-655.34,0.00023541,2]
[367198534,1750698662855,-490.0,0.00023541,2]
[367198535,1750698662865,-490.0,0.00023541,2]
[367198536,1750698662875,-406.82,0.00023541,2]
[367198537,1750698662885,-490.0,0.00023541,2]
[367198538,1750698662896,-490.0,0.00023541,2]
[367198539,1750698662906,-608.99,0.00023541,2]
[367198540,1750698662917,-490.0,0.00023541,2]
[367198541,1750698662926,-238.14493284,0.00023541,2]
[367198542,1750698662937,-1379.66,0.00023541,2]
[367198543,1750698662947,-669.98,0.00023541,2]
[367198544,1750698662957,-611.24,0.00023541,2]
[367198545,1750698662966,-651.34,0.00023541,2]
[367198546,1750698662976,-1147.78,0.00023541,2]
[367198547,1750698662986,-490.0,0.00023541,2]
[367198548,1750698662995,-490.0,0.00023541,2]
[367198549,1750698663007,-490.0,0.00023541,2]
[367198550,1750698663017,-848.13,0.00023541,2]
[367198551,1750698663026,-490.0,0.00023541,2]
[367198552,1750698663042,-490.11,0.00023541,2]
[367198553,1750698663052,-491.56,0.00023541,2]
[367198554,1750698663061,-490.0,0.00023541,2]
[367198555,1750698663072,-535.75,0.00023541,2]
[367198556,1750698663085,-710.24,0.00023541,2]
[367198557,1750698663095,-1005.59,0.00023541,2]
[367198558,1750698663104,-490.0,0.00023541,2]
[367198559,1750698663115,-1093.69,0.00023541,2]
[367198560,1750698663125,-490.0,0.00023541,2]
[367198561,1750698663136,-495.46,0.00023541,2]
[367198562,1750698663145,-1026.37,0.00023541,2]
[367198563,1750698663155,-1042.94,0.00023541,2]
[367198564,1750698663164,-490.0,0.00023541,2]
[367198565,1750698663174,-490.0,0.00023541,2]
[367198566,1750698663183,-680.85,0.00023541,2]
[367198567,1750698663194,-999.16,0.00023541,2]
[367198568,1750698663203,-667.22,0.00023541,2]
[367198569,1750698663213,-693.98,0.00023541,2]
[367198570,1750698663222,-1158.24,0.00023541,2]
[367198571,1750698663233,-490.0,0.00023541,2]
[367198572,1750698663243,-1114.67,0.00023541,2]
[367198573,1750698663253,-796.17,0.00023541,2]
[367198574,1750698663266,-490.0,0.00023541,2]
[367198575,1750698663275,-908.82,0.00023541,2]
[367198576,1750698663284,-588.97,0.00023541,2]
[367198577,1750698663294,-917.59,0.00023541,2]
[367198578,1750698663304,-821.03,0.00023541,2]
[367198579,1750698663314,-490.0,0.00023541,2]
[367198580,1750698663324,-1290.1,0.00023541,2]
[367198581,1750698663337,-490.0,0.00023541,2]
[367198582,1750698663347,-795.86,0.00023541,2]
[367198583,1750698663356,-577.68,0.00023541,2]
[367198584,1750698663366,-1286.37,0.00023541,2]
[367198585,1750698663375,-490.0,0.00023541,2]
[367198586,1750698663385,-891.33,0.00023541,2]
[367198587,1750698663394,-490.0,0.00023541,2]
[367198588,1750698663404,-490.0,0.00023541,2]
[367198589,1750698663414,-547.12,0.00023541,2]
[367198590,1750698663423,-607.15,0.00023541,2]
[367198591,1750698663433,-915.13,0.00023541,2]
[367198592,1750698663442,-255.14161773,0.00023541,2]
[367198593,1750698663452,-516.46303286,0.00023541,2]
[367198594,1750698663461,-490.0,0.00023541,2]
[367198595,1750698663471,-490.0,0.00023541,2]
[367198596,1750698663481,-519.94,0.00023541,2]
[367198597,1750698663490,-827.87,0.00023541,2]
[367198598,1750698663501,-490.0,0.00023541,2]
[367198599,1750698663511,-490.0,0.00023541,2]
[367198600,1750698663520,-490.0,0.00023541,2]
[367198601,1750698663531,-528.13,0.00023541,2]
[367198602,1750698663540,-735.18,0.00023541,2]
[367198603,1750698663554,-219.21710717,0.00023541,2]
[367198604,1750698663563,-490.0,0.00023541,2]
[367198605,1750698663573,-490.0,0.00023541,2]
[367198606,1750698663586,-490.0,0.00023541,2]
[367198607,1750698663597,-503.9,0.00023541,2]
[367198608,1750698663607,-868.27,0.00023541,2]
[367198609,1750698663617,-577.29,0.00023541,2]
[367198610,1750698663627,-490.0,0.00023541,2]
[367198611,1750698663637,-490.0,0.00023541,2]
[367198612,1750698663647,-405.71416839,0.00023541,2]
[367198613,1750698663657,-490.0,0.00023541,2]
[367198614,1750698663667,-532.41,0.00023541,2]
[367198615,1750698663677,-713.81,0.00023541,2]
[367198616,1750698663687,-490.0,0.00023541,2]
[367198617,1750698663697,-639.62,0.00023541,2]
[367198618,1750698663706,-490.0,0.00023541,2]
[367198619,1750698663716,-490.0,0.00023541,2]
[367198620,1750698663727,-490.0,0.00023541,2]
[367198621,1750698663737,-490.0,0.00023541,2]
[367198622,1750698663746,-503.62,0.00023541,2]
[367198623,1750698663756,-258.77600403,0.00023541,2]
[367198624,1750698663766,-1449.54,0.00023541,2]
[367198625,1750698663776,-490.0,0.00023541,2]
[367198626,1750698663786,-2103.74,0.00023541,2]
[367198627,1750698663796,-1502.01,0.00023541,2]
[367198628,1750698663805,-490.0,0.00023541,2]
[367198629,1750698663815,-490.0,0.00023541,2]
[367198630,1750698663825,-490.0,0.00023541,2]
[367198631,1750698663837,-1281.35,0.00023541,2]
[367198632,1750698663846,-490.0,0.00023541,2]
[367198633,1750698663856,-212.89181507,0.00023541,2]
[367198634,1750698663866,-490.0,0.00023541,2]
[367198635,1750698663876,-1013.96,0.00023541,2]
[367198636,1750698663886,-978.16,0.00023541,2]
[367198637,1750698663896,-706.03,0.00023541,2]
[367198638,1750698663905,-490.0,0.00023541,2]
[367198639,1750698663916,-490.0,0.00023541,2]
[367198640,1750698663926,-490.0,0.00023541,2]
[367198641,1750698663935,-490.0,0.00023541,2]
[367198642,1750698663945,-490.0,0.00023541,2]
[367198643,1750698663954,-490.0,0.00023541,2]
[367198644,1750698663965,-490.0,0.00023541,2]
[367198645,1750698663977,-851.97,0.00023541,2]
[367198646,1750698663987,-490.0,0.00023541,2]
[367198647,1750698663997,-490.0,0.00023541,2]
[367198648,1750698664007,-490.0,0.00023541,2]
[367198649,1750698664016,-490.0,0.00023541,2]
[367198650,1750698664025,-968.94,0.00023541,2]
[367198651,1750698664036,-490.0,0.00023541,2]
[367198652,1750698664050,-1305.56,0.00023541,2]
[367198653,1750698664060,-605.32,0.00023541,2]
[367198654,1750698664070,-1523.12,0.00023541,2]
[367198655,1750698664083,-496.3,0.00023541,2]
[367198656,1750698664094,-596.62,0.00023541,2]
[367198657,1750698664104,-490.0,0.00023541,2]
[367198658,1750698664114,-490.0,0.00023541,2]
[367198659,1750698664125,-490.0,0.00023541,2]
[367198660,1750698664135,-490.0,0.00023541,2]
[367198661,1750698664146,-1231.23,0.00023541,2]
[367198662,1750698664157,-490.0,0.00023541,2]
[367198663,1750698664167,-640.93,0.00023541,2]
[367198664,1750698664179,-490.0,0.00023541,2]
[367198665,1750698664189,-1091.48,0.00023541,2]
[367198666,1750698664199,-490.0,0.00023541,2]
[367198667,1750698664210,-736.66,0.00023541,2]
[367198668,1750698664220,-1000.0,0.00023541,2]
[367198669,1750698664236,-490.0,0.00023541,2]
[367198670,1750698664252,-490.0,0.00023541,2]
[367198671,1750698664263,-1296.4,0.00023541,2]
[367198672,1750698664273,-490.0,0.00023541,2]
[367198673,1750698664283,-687.53,0.00023541,2]
[367198674,1750698664294,-577.42,0.00023541,2]
[367198675,1750698664304,-490.0,0.00023541,2]
[367198676,1750698664314,-994.99,0.00023541,2]
[367198677,1750698664326,-1465.11,0.00023541,2]
[367198678,1750698664344,-490.0,0.00023541,2]
[367198679,1750698664355,-659.98,0.00023541,2]
[367198680,1750698664366,-1163.27,0.00023541,2]
[367198681,1750698664376,-1296.64,0.00023541,2]
[367198682,1750698664386,-490.0,0.00023541,2]
[367198683,1750698664396,-805.19,0.00023541,2]
[367198684,1750698664407,-490.0,0.00023541,2]
[367198685,1750698664417,-798.6,0.00023541,2]
[367198686,1750698664427,-961.74,0.00023541,2]
[367198687,1750698664436,-490.0,0.00023541,2]
[367198688,1750698664446,-377.53152257,0.00023541,2]
[367198689,1750698664456,-490.0,0.00023541,2]
[367198690,1750698664466,-586.53,0.00023541,2]
[367198691,1750698664476,-711.71,0.00023541,2]
[367198692,1750698664486,-490.0,0.00023541,2]
[367198693,1750698664495,-490.0,0.00023541,2]
[367198694,1750698664506,-1316.01,0.00023541,2]
[367198695,1750698664515,-2071.77,0.00023541,2]
[367198696,1750698664525,-309.65454389,0.00023541,2]
[367198697,1750698664535,-490.0,0.00023541,2]
[367198698,1750698664545,-490.0,0.00023541,2]
[367198699,1750698664555,-707.92,0.00023541,2]
[367198700,1750698664564,-1728.498739,0.00023541,7]
[367198701,1750698664574,-490.0,0.00023541,2]
[367198702,1750698664588,-988.12,0.00023541,2]
[367198703,1750698664598,-1316.04,0.00023541,2]
[367198704,1750698664607,-1728.498739,0.00023541,7]
[367198705,1750698664617,-490.0,0.00023541,2]
[367198706,1750698664628,-490.0,0.00023541,2]
[367198707,1750698664638,-1649.14,0.00023541,2]
[367198708,1750698664648,-943.07,0.00023541,2]
[367198709,1750698664659,-677.43,0.00023541,2]
[367198710,1750698664668,-490.0,0.00023541,2]
[367198711,1750698664678,-490.0,0.00023541,2]
[367198712,1750698664688,-2574.3,0.00023541,2]
[367198713,1750698664699,-1451.84,0.00023541,2]
[367198714,1750698664709,-1302.67,0.00023541,2]
[367198715,1750698664719,-761.66,0.00023541,2]
[367198716,1750698664729,-671.45,0.00023541,2]
[367198717,1750698664739,-1201.92,0.00023541,2]
[367198718,1750698664749,-490.0,0.00023541,2]
[367198719,1750698664759,-490.0,0.00023541,2]
[367198720,1750698664769,-490.0,0.00023541,2]
[367198721,1750698664780,-490.0,0.00023541,2]
[367198722,1750698664789,-248.90820194,0.00023541,2]
[367198723,1750698664799,-426.99227332,0.00023541,2]
[367198724,1750698664810,-1463.6,0.00023541,2]
[367198725,1750698664819,-1384.87,0.00023541,2]
[367198726,1750698664831,-1565.89,0.00023541,2]
[367198727,1750698664841,-740.56,0.00023541,2]
[367198728,1750698664851,-490.0,0.00023541,2]
[367198729,1750698664861,-581.5,0.00023541,2]
[367198730,1750698664872,-1274.36,0.00023541,2]
[367198731,1750698664882,-3207.81,0.00023541,2]
[367198732,1750698664892,-490.0,0.00023541,2]
[367198733,1750698664902,-1136.75,0.00023541,2]
[367198734,1750698664912,-490.0,0.00023541,2]
[367198735,1750698664922,-508.28,0.00023541,2]
[367198736,1750698664932,-1015.78,0.00023541,2]
[367198737,1750698664941,-490.0,0.00023541,2]
[367198738,1750698664951,-645.34,0.00023541,2]
[367198739,1750698664961,-1082.91,0.00023541,2]
[367198740,1750698664971,-570.24,0.00023541,2]
[367198741,1750698664981,-3216.41,0.00023541,2]
[367198742,1750698664991,-1198.83,0.00023541,2]
[367198743,1750698665002,-777.62,0.00023541,2]
[367198744,1750698665012,-3260.51,0.00023541,2]
[367198745,1750698665021,-642.42,0.00023541,2]
[367198746,1750698665031,-1064.93,0.00023541,2]
[367198747,1750698665043,-2313.09,0.00023541,2]
[367198748,1750698665053,-690.62,0.00023541,2]
[367198749,1750698665063,-490.0,0.00023541,2]
[367198750,1750698665075,-490.0,0.00023541,2]
[367198751,1750698665090,-1610.22,0.00023541,2]
[367198752,1750698665100,-3410.48,0.00023541,2]
[367198753,1750698665110,-490.0,0.00023541,2]
[367198754,1750698665123,-490.0,0.00023541,2]
[367198755,1750698665134,-1189.88,0.00023541,2]
[367198756,1750698665144,-503.76,0.00023541,2]
[367198757,1750698665155,-1272.73,0.00023541,2]
[367198758,1750698665166,-1292.27,0.00023541,2]
[367198759,1750698665175,-1305.05,0.00023541,2]
[367198760,1750698665185,-490.0,0.00023541,2]
[367198761,1750698665194,-5009.26,0.00023541,2]
[367198762,1750698665206,-802.99,0.00023541,2]
[367198763,1750698665216,-1417.36,0.00023541,2]
[367198764,1750698665226,-534.32,0.00023541,2]
[367198765,1750698665237,-165.739313,0.00023541,7]
[367198766,1750698665248,-1871.08,0.00023541,2]
[367198767,1750698665257,-490.0,0.00023541,2]
[367198768,1750698665267,-490.0,0.00023541,2]